bitfinex-derivatives/quotes_BTCF0:USTF0_20251130
["timestamp","ask_amount","ask_price","bid_price","bid_amount"]
[1764464958082,0.04571447,91086.0,91085.0,0.0439]
[1764464958286,0.36202176,91086.0,91085.0,0.0439]
[1764464959485,0.36802176,91086.0,91085.0,0.0439]
[1764464959695,0.36902176,91086.0,91085.0,0.0439]
[1764464970402,0.36902176,91086.0,91079.0,0.0109778]
[1764464970403,0.04396,91080.0,91079.0,0.04425]
[1764464970592,0.07026729,91080.0,91079.0,0.04425]
[1764464971588,0.07426729,91080.0,91079.0,0.04425]
[1764464971789,0.07526729,91080.0,91079.0,0.04425]
[1764464983705,0.07426729,91080.0,91079.0,0.04425]
[1764464984105,0.07026729,91080.0,91079.0,0.04425]
[1764464984410,0.07026729,91080.0,91079.0,0.04725]
[1764464987910,0.48105729,91080.0,91079.0,0.003]
[1764464988603,0.05553,91077.0,91076.0,0.00016471]
[1764464988803,0.04456,91063.0,91062.0,0.05804]
[1764464989004,0.04456,91063.0,91062.0,0.16804]
[1764464989612,0.07071343,91063.0,91062.0,0.05804]
[1764464989812,0.07071343,91063.0,91062.0,0.04489]
[1764464990003,0.04456,91057.0,91056.0,0.05804]
[1764464990202,0.04456,91057.0,91056.0,0.47804]
[1764464990611,0.04456,91057.0,91056.0,0.19804]
[1764464991407,0.04456,91057.0,91056.0,0.20204]
[1764464993201,0.04456,91057.0,91056.0,0.06204]
[1764464993401,0.04456,91057.0,91056.0,0.0730206]
[1764464993917,0.04456,91057.0,91056.0,0.06204]
[1764464994119,0.04456,91057.0,91056.0,0.0730206]
[1764465000810,0.15114418,91066.0,91065.0,0.02276]
[1764465001009,0.1408524,91066.0,91065.0,0.05804]
[1764465001209,0.3708524,91066.0,91065.0,0.04489]
[1764465001611,0.3708524,91066.0,91065.0,0.02276]
[1764465002714,0.3708524,91066.0,91065.0,0.04489]
[1764465003016,0.3708524,91066.0,91065.0,0.04589]
[1764465004219,0.37085018,91066.0,91065.0,0.04589]
[1764465005508,0.37085018,91066.0,91065.0,0.001]
[1764465006722,0.37085018,91066.0,91065.0,0.02376]
[1764465006922,0.37085018,91066.0,91065.0,0.02276]
[1764465007909,0.04456,91057.0,91056.0,0.05804]
[1764465008811,0.04456,91057.0,91056.0,0.04489]
[1764465009017,0.04456,91057.0,91056.0,0.02576]
[1764465009214,0.42456,91057.0,91056.0,0.04789]
[1764465009819,0.42456,91057.0,91056.0,0.02476]
[1764465010019,0.42456,91057.0,91056.0,0.002]
[1764465010419,0.04456,91054.0,91053.0,0.00016471]
[1764465010724,0.46085687,91054.0,91053.0,0.00016471]
[1764465011628,0.46085687,91054.0,91053.0,0.02292471]
[1764465012025,0.46085687,91054.0,91053.0,0.04505471]
[1764465012938,0.46085687,91054.0,91053.0,0.04605471]
[1764465014540,0.46085687,91054.0,91053.0,0.00116471]
[1764465015128,0.46085687,91054.0,91053.0,0.04534471]
[1764465016337,0.31085687,91054.0,91053.0,0.04434471]
[1764465016533,0.31085687,91054.0,91053.0,0.04534471]
[1764465016934,0.31085687,91054.0,91053.0,0.04634471]
[1764465018133,0.31085687,91054.0,91053.0,0.05732561]
[1764465018340,0.31085687,91054.0,91053.0,0.04634471]
[1764465021744,0.31087008,91054.0,91053.0,0.04634471]
[1764465023039,0.31087008,91054.0,91053.0,0.06937561]
[1764465023040,0.07087008,91054.0,91053.0,0.06937561]
[1764465023342,0.04456,91054.0,91053.0,0.06937561]
[1764465023942,0.12902418,91063.0,91057.0,0.0109804]
[1764465024142,0.29322,91063.0,91062.0,0.04348]
[1764465024343,0.31962524,91063.0,91062.0,0.04348]
[1764465024549,0.31962524,91063.0,91057.0,0.0544604]
[1764465024550,0.04322,91058.0,91057.0,0.0544604]
[1764465024746,0.06962524,91058.0,91057.0,0.0544604]
[1764465025144,0.06962524,91058.0,91057.0,0.0554604]
[1764465025547,0.06962524,91058.0,91057.0,0.0544604]
[1764465025749,0.06962524,91058.0,91057.0,0.0554604]
[1764465026153,0.06962524,91058.0,91057.0,0.0544604]
[1764465026341,0.06962524,91058.0,91057.0,0.0564604]
[1764465029150,0.06962524,91058.0,91057.0,0.04548]
[1764465036564,0.06962524,91058.0,91057.0,0.002]
[1764465036953,0.06962524,91058.0,91057.0,0.0239]
[1764465038162,0.06962524,91058.0,91057.0,0.04548]
[1764465040460,0.06962524,91058.0,91057.0,0.0239]
[1764465041264,0.06962524,91058.0,91057.0,0.002]
[1764465042264,0.04322,91054.0,91053.0,0.04364471]
[1764465042467,0.06962524,91054.0,91053.0,0.17364471]
[1764465044369,0.06962524,91054.0,91053.0,0.42364471]
[1764465044666,0.06962524,91054.0,91053.0,0.42664471]
[1764465048068,0.06962524,91054.0,91053.0,0.17664471]
[1764465049669,0.06962524,91054.0,91053.0,0.41664471]
[1764465055288,0.06962524,91054.0,91053.0,0.04664471]
[1764465058180,0.06962524,91054.0,91053.0,0.00316471]
[1764465059189,0.06962524,91054.0,91053.0,0.02578471]
[1764465059492,0.06962524,91054.0,91053.0,0.00316471]
[1764465059688,0.06962524,91054.0,91053.0,0.02478471]
[1764465060290,0.06962524,91054.0,91053.0,0.02378471]
[1764465060596,0.06962524,91054.0,91053.0,0.00116471]
[1764465062582,0.06962524,91054.0,91053.0,0.02378471]
[1764465062896,0.06962524,91054.0,91053.0,0.04488471]
[1764465073000,0.06962524,91054.0,91053.0,0.47488471]
[1764465076509,0.06967552,91054.0,91053.0,0.47488471]
[1764465079103,0.04805552,91054.0,91053.0,0.47488471]
[1764465079326,0.01264,91062.0,91061.0,0.0442]
[1764465079327,0.02326,91062.0,91061.0,0.0442]
[1764465079495,0.05859,91071.0,91070.0,0.0442]
[1764465079702,0.08503749,91071.0,91070.0,0.0442]
[1764465081104,0.08603749,91071.0,91070.0,0.0442]
[1764465081907,0.08903749,91071.0,91070.0,0.0442]
[1764465082411,0.08603749,91071.0,91070.0,0.0442]
[1764465082614,0.08503749,91071.0,91070.0,0.0442]
[1764465087813,0.08511749,91071.0,91070.0,0.0442]
[1764465092321,0.04284,91069.0,91068.0,0.0341791]
[1764465093522,0.04284,91069.0,91068.0,0.0567691]
[1764465099324,0.06937097,91069.0,91068.0,0.0567691]
[1764465099827,0.04284,91069.0,91068.0,0.0567691]
[1764465100227,0.06937309,91069.0,91068.0,0.0567691]
[1764465101124,0.06937307,91069.0,91068.0,0.0567691]
[1764465109529,0.06942147,91069.0,91068.0,0.0567691]
[1764465121242,0.06942147,91069.0,91068.0,0.4167691]
[1764465121430,0.0215,91069.0,91068.0,0.4167691]
[1764465121737,0.04410471,91072.0,91071.0,0.0564587]
[1764465121938,0.02693348,91072.0,91071.0,0.4764587]
[1764465122130,0.00016471,91072.0,91071.0,0.4764587]
[1764465122625,0.02169471,91072.0,91071.0,0.4764587]
[1764465123030,0.04410471,91072.0,91071.0,0.4764587]
[1764465123225,0.04510471,91072.0,91071.0,0.4764587]
[1764465126632,0.04510471,91072.0,91071.0,0.46548]
[1764465126839,0.04510471,91072.0,91071.0,0.42]
[1764465127039,0.04510471,91072.0,91071.0,0.44256]
[1764465127536,0.04510471,91072.0,91071.0,0.19548]
[1764465129232,0.04510471,91072.0,91071.0,0.04548]
[1764465129841,0.04510471,91072.0,91071.0,0.0564587]
[1764465131545,0.04394,91064.0,91063.0,0.0654897]
[1764465131743,0.04394,91064.0,91063.0,0.3754897]
[1764465132042,0.04394,91057.0,91056.0,0.0564605]
[1764465132241,0.04394,91057.0,91056.0,0.4564605]
[1764465133442,0.04394,91057.0,91056.0,0.4594605]
[1764465142544,0.07066705,91057.0,91056.0,0.4594605]
[1764465148839,0.04825705,91057.0,91056.0,0.4594605]
[1764465149042,0.05834,91065.0,91064.0,0.0559196]
[1764465149244,0.08503202,91065.0,91064.0,0.0559196]
[1764465150251,0.08503202,91065.0,91064.0,0.0569196]
[1764465152457,0.05834,91065.0,91064.0,0.0569196]
[1764465153344,0.085039,91065.0,91064.0,0.0569196]
[1764465154253,0.085039,91065.0,91064.0,0.04594]
[1764465164661,0.085039,91065.0,91064.0,0.04494]
[1764465164866,0.085039,91065.0,91064.0,0.04594]
[1764465183778,0.085039,91065.0,91064.0,0.001]
[1764465184881,0.04379,91064.0,91063.0,0.0109796]
[1764465185072,0.070489,91064.0,91063.0,0.0109796]
[1764465186582,0.070489,91064.0,91063.0,0.0129796]
[1764465188084,0.070489,91064.0,91063.0,0.002]
[1764465190187,0.070489,91064.0,91063.0,0.001]
[1764465190774,0.04379,91062.0,91061.0,0.00903]
[1764465190975,0.070489,91062.0,91061.0,0.00903]
[1764465192575,0.470489,91062.0,91061.0,0.01103]
[1764465193682,0.04475,91054.0,91053.0,0.00016471]
[1764465193883,0.04475,91046.0,91045.0,0.0570018]
[1764465194090,0.071449,91046.0,91045.0,0.31602]
[1764465195189,0.071449,91046.0,91045.0,0.07602]
[1764465195584,0.04475,91037.0,91036.0,0.04618471]
[1764465195787,0.04475,91037.0,91036.0,0.44716771]
[1764465196990,0.04475,91037.0,91036.0,0.45216771]
[1764465209998,0.05741,91044.0,91043.0,0.0533221]
[1764465210199,0.05741,91044.0,91043.0,0.4733221]
[1764465210798,0.04377,91044.0,91043.0,0.4733221]
[1764465210992,0.02136,91044.0,91043.0,0.4733221]
[1764465211592,0.02136,91044.0,91043.0,0.4763221]
[1764465211791,0.04377,91044.0,91043.0,0.4763221]
[1764465212304,0.04377,91044.0,91043.0,0.4773221]
[1764465212603,0.04377,91044.0,91043.0,0.4793221]
[1764465214004,0.04377,91044.0,91043.0,0.4783221]
[1764465214197,0.04377,91044.0,91043.0,0.4793221]
[1764465214901,0.02136,91044.0,91043.0,0.4783221]
[1764465215207,0.02136,91044.0,91043.0,0.4773221]
[1764465215700,0.04377,91044.0,91043.0,0.4773221]
[1764465216797,0.02152471,91046.0,91045.0,0.04234]
[1764465217006,0.02152471,91046.0,91045.0,0.43234]
[1764465217195,0.04393471,91046.0,91045.0,0.43234]
[1764465218502,0.04393471,91046.0,91045.0,0.43634]
[1764465219508,0.04393471,91046.0,91045.0,0.43234]
[1764465219698,0.04393471,91046.0,91045.0,0.43634]
[1764465223311,0.02152471,91046.0,91045.0,0.43634]
[1764465224228,0.04480471,91046.0,91045.0,0.43634]
[1764465238722,0.05794471,91046.0,91045.0,0.43634]
[1764465242133,0.05794471,91046.0,91045.0,0.43234]
[1764465242335,0.05794471,91046.0,91045.0,0.43634]
[1764465242534,0.08484176,91046.0,91045.0,0.43634]
[1764465252443,0.05794471,91046.0,91045.0,0.43634]
[1764465263657,0.04480471,91046.0,91045.0,0.43634]
[1764465264947,0.00016471,91046.0,91045.0,0.43634]
[1764465265264,0.04273,91060.0,91059.0,0.0536402]
[1764465265455,0.06973358,91060.0,91059.0,0.4636402]
[1764465265655,0.04820358,91060.0,91059.0,0.4636402]
[1764465265861,0.0212,91060.0,91059.0,0.4636402]
[1764465267366,0.0212,91060.0,91059.0,0.4656402]
[1764465267665,0.04273,91060.0,91059.0,0.4656402]
[1764465269569,0.05664,91068.0,91067.0,0.0536392]
[1764465269860,0.08361772,91068.0,91067.0,0.0536392]
[1764465270462,0.05664,91068.0,91067.0,0.0536392]
[1764465272566,0.08360351,91068.0,91067.0,0.0536392]
[1764465275362,0.05664,91068.0,91067.0,0.0536392]
[1764465276972,0.05664,91068.0,91067.0,0.04266]
[1764465282569,0.08358881,91068.0,91067.0,0.04266]
[1764465284672,0.08358881,91068.0,91058.0,0.00016471]
[1764465284673,0.01293,91062.0,91061.0,0.04607]
[1764465284869,0.05555,91062.0,91061.0,0.06607]
[1764465286672,0.05555,91062.0,91061.0,0.06807]
[1764465287173,0.05555,91062.0,91061.0,0.022]
[1764465287377,0.05555,91062.0,91061.0,0.002]
[1764465287378,0.08250781,91062.0,91061.0,0.002]
[1764465287979,0.08250781,91062.0,91061.0,0.02528]
[1764465289278,0.08250781,91062.0,91061.0,0.04807]
[1764465292580,0.05555,91062.0,91061.0,0.04807]
[1764465294385,0.05555,91062.0,91061.0,0.02528]
[1764465294687,0.05555,91062.0,91061.0,0.04807]
[1764465302587,0.0824387,91062.0,91061.0,0.04807]
[1764465303687,0.0824387,91062.0,91061.0,0.04607]
[1764465303887,0.0824387,91062.0,91061.0,0.04807]
[1764465327618,0.0824387,91062.0,91061.0,0.05905]
[1764465327807,0.0824387,91062.0,91061.0,0.04807]
[1764465330717,0.0824387,91062.0,91061.0,0.002]
[1764465330918,0.0824387,91062.0,91061.0,0.04716]
[1764465333626,0.0824387,91062.0,91061.0,0.002]
[1764465333924,0.0824387,91062.0,91061.0,0.02422]
[1764465337126,0.0824387,91062.0,91061.0,0.04716]
[1764465351736,0.04262,91062.0,91061.0,0.41716]
[1764465354737,0.05566,91062.0,91061.0,0.41716]
[1764465362447,0.08235103,91062.0,91061.0,0.41716]
[1764465371765,0.08235103,91062.0,91061.0,0.12716]
[1764465374966,0.08235103,91062.0,91061.0,0.34716]
[1764465380973,0.08235103,91062.0,91061.0,0.11716]
[1764465382467,0.05566,91062.0,91061.0,0.11716]
[1764465390983,0.08245056,91062.0,91061.0,0.11716]
[1764465391280,0.05566,91062.0,91061.0,0.11716]
[1764465392580,0.08244734,91062.0,91061.0,0.11716]
[1764465394079,0.06940734,91062.0,91061.0,0.42716]
[1764465396485,0.04262,91062.0,91061.0,0.42716]
[1764465397885,0.04433,91068.0,91067.0,0.0543192]
[1764465398090,0.0499843,91068.0,91067.0,0.0543192]
[1764465398379,0.0711143,91068.0,91067.0,0.0543192]
[1764465399083,0.0711143,91068.0,91067.0,0.4143192]
[1764465399281,0.18605271,91080.0,91079.0,0.04334]
[1764465399480,0.08382937,91080.0,91079.0,0.04334]
[1764465400579,0.08682937,91080.0,91079.0,0.04334]
[1764465400778,0.08782937,91080.0,91079.0,0.04334]
[1764465405194,0.04833,91080.0,91079.0,0.47334]
[1764465406895,0.0617,91080.0,91079.0,0.47334]
[1764465407693,0.04833,91080.0,91079.0,0.47334]
[1764465411900,0.0617,91080.0,91079.0,0.09334]
[1764465418898,0.0617,91080.0,91079.0,0.41334]
[1764465419094,0.0272,91080.0,91079.0,0.41334]
[1764465419607,0.05041,91080.0,91079.0,0.41334]
[1764465420300,0.06378,91080.0,91079.0,0.41334]
[1764465420706,0.05041,91080.0,91079.0,0.41334]
[1764465421403,0.004,91080.0,91079.0,0.41334]
[1764465422410,0.02548,91080.0,91079.0,0.41334]
[1764465422709,0.05213765,91080.0,91079.0,0.41334]
[1764465423128,0.07534765,91080.0,91079.0,0.41334]
[1764465425520,0.08871765,91080.0,91079.0,0.41334]
[1764465427527,0.08871765,91080.0,91079.0,0.14334]
[1764465433226,0.08871765,91080.0,91079.0,0.04334]
[1764465439230,0.08871765,91080.0,91079.0,0.43334]
[1764465440336,0.05213765,91080.0,91079.0,0.43334]
[1764465440538,0.03065765,91080.0,91079.0,0.43334]
[1764465440730,0.00712825,91080.0,91079.0,0.43334]
[1764465441341,0.05789447,91086.0,91085.0,0.0542371]
[1764465442939,0.06389447,91086.0,91085.0,0.0542371]
[1764465452841,0.09043775,91086.0,91085.0,0.0542371]
[1764465453142,0.07686775,91086.0,91085.0,0.4142371]
[1764465453444,0.00627447,91086.0,91085.0,0.4142371]
[1764465453945,0.05119447,91086.0,91085.0,0.4142371]
[1764465454144,0.02929447,91086.0,91085.0,0.4142371]
[1764465454746,0.02429447,91086.0,91085.0,0.4142371]
[1764465454943,0.02429447,91086.0,91085.0,0.4162371]
[1764465455244,0.02329447,91086.0,91085.0,0.4162371]
[1764465457846,0.00027447,91086.0,91085.0,0.4162371]
[1764465458233,0.02329447,91086.0,91085.0,0.4162371]
[1764465459850,0.04519447,91086.0,91085.0,0.4162371]
[1764465460254,0.02329447,91086.0,91085.0,0.4162371]
[1764465460444,0.05899447,91086.0,91085.0,0.4162371]
[1764465461755,0.04519447,91086.0,91085.0,0.4162371]
[1764465462050,0.05899447,91086.0,91085.0,0.4162371]
[1764465462449,0.04519447,91086.0,91085.0,0.4162371]
[1764465471658,0.02329447,91086.0,91085.0,0.4162371]
[1764465471862,0.02278447,91086.0,91085.0,0.4162371]
[1764465472560,0.04927545,91086.0,91085.0,0.4162371]
[1764465474159,0.07152545,91086.0,91085.0,0.4162371]
[1764465475561,0.04927545,91086.0,91085.0,0.4162371]
[1764465475763,0.02676545,91086.0,91085.0,0.4162371]
[1764465475958,0.04927545,91086.0,91085.0,0.4162371]
[1764465476162,0.07152545,91086.0,91085.0,0.4162371]
[1764465477155,0.02676545,91086.0,91085.0,0.4162371]
[1764465477655,0.04927545,91086.0,91085.0,0.4162371]
[1764465479363,0.02676545,91086.0,91085.0,0.4162371]
[1764465481163,0.07152545,91086.0,91085.0,0.4162371]
[1764465481667,0.02676545,91086.0,91085.0,0.4162371]
[1764465482770,0.00027447,91086.0,91085.0,0.4162371]
[1764465482970,0.05744,91098.0,91097.0,0.0549756]
[1764465483175,0.05744,91107.0,91106.0,0.0549745]
[1764465483373,0.05744,91107.0,91106.0,0.4649745]
[1764465485461,0.06144,91107.0,91106.0,0.4649745]
[1764465485661,0.06244,91107.0,91106.0,0.4649745]
[1764465486057,0.005,91107.0,91106.0,0.47595566]
[1764465486363,0.04976,91107.0,91106.0,0.47595566]
[1764465487665,0.02751,91107.0,91106.0,0.47595566]
[1764465487972,0.04976,91107.0,91106.0,0.47595566]
[1764465491877,0.06244,91107.0,91106.0,0.06595566]
[1764465492170,0.06244,91107.0,91106.0,0.08498116]
[1764465492674,0.06244,91107.0,91106.0,0.01098116]
[1764465492974,0.06244,91107.0,91101.0,0.0109751]
[1764465492975,0.04476,91102.0,91101.0,0.0549751]
[1764465493175,0.04476,91102.0,91101.0,0.2149751]
[1764465494066,0.04576,91102.0,91101.0,0.2149751]
[1764465494276,0.001,91102.0,91101.0,0.48590298]
[1764465494577,0.04748,91102.0,91101.0,0.19590298]
[1764465502086,0.04748,91102.0,91101.0,0.49590298]
[1764465502787,0.04748,91102.0,91101.0,0.23590298]
[1764465504685,0.04748,91102.0,91101.0,0.06590298]
[1764465504886,0.04748,91102.0,91101.0,0.39590298]
[1764465506512,0.04748,91102.0,91101.0,0.09590298]
[1764465507783,0.04748,91102.0,91101.0,0.30590298]
[1764465512598,0.07371995,91102.0,91101.0,0.30590298]
[1764465518407,0.07371995,91102.0,91101.0,0.06590298]
[1764465518619,0.07371995,91102.0,91101.0,0.07590298]
[1764465519613,0.07371995,91102.0,91101.0,0.06590298]
[1764465519917,0.07371995,91102.0,91101.0,0.07037298]
[1764465522220,0.07371995,91102.0,91101.0,0.05939788]
[1764465523919,0.07371995,91102.0,91101.0,0.01539788]
[1764465525510,0.07371995,91102.0,91101.0,0.03818788]
[1764465525819,0.07371995,91102.0,91101.0,0.01539788]
[1764465527525,0.05653,91098.0,91097.0,0.00016471]
[1764465527715,0.05653,91098.0,91083.0,0.0552873]
[1764465527716,0.04358,91084.0,91083.0,0.0552873]
[1764465528026,0.06981995,91084.0,91083.0,0.4252873]
[1764465528528,0.06981995,91084.0,91083.0,0.43612191]
[1764465530120,0.06981995,91084.0,91083.0,0.43912191]
[1764465530328,0.04358,91084.0,91083.0,0.43912191]
[1764465537127,0.04358,91084.0,91083.0,0.42814461]
[1764465537318,0.04358,91084.0,91083.0,0.43912191]
[1764465538228,0.04358,91084.0,91083.0,0.42814461]
[1764465540719,0.04358,91084.0,91083.0,0.17814461]
[1764465541733,0.04358,91084.0,91083.0,0.05814461]
[1764465541921,0.04358,91084.0,91074.0,0.02295471]
[1764465541922,0.04358,91075.0,91074.0,0.02295471]
[1764465542128,0.04358,91075.0,91074.0,0.00016471]
[1764465542428,0.04358,91075.0,91074.0,0.03397574]
[1764465542630,0.04358,91075.0,91074.0,0.05549574]
[1764465543151,0.04358,91075.0,91074.0,0.01118574]
[1764465543334,0.04358,91075.0,91074.0,0.05849574]
[1764465543529,0.44358,91075.0,91074.0,0.01418574]
[1764465543729,0.44358,91075.0,91074.0,0.01118574]
[1764465543932,0.44358,91075.0,91074.0,0.01418574]
[1764465545029,0.44358,91075.0,91046.0,0.00027459]
[1764465545250,0.18539301,91060.0,91059.0,0.04431]
[1764465545428,0.05653,91060.0,91059.0,0.05562418]
[1764465546539,0.05653,91060.0,91059.0,0.05862418]
[1764465546841,0.05653,91060.0,91059.0,0.01431418]
[1764465547028,0.05653,91060.0,91059.0,0.03610418]
[1764465548131,0.05653,91060.0,91059.0,0.05762418]
[1764465549235,0.05753,91060.0,91059.0,0.05562418]
[1764465550237,0.05653,91060.0,91059.0,0.05562418]
[1764465562637,0.08298986,91060.0,91059.0,0.05562418]
[1764465569640,0.08298986,91060.0,91059.0,0.01131418]
[1764465569842,0.08298986,91060.0,91050.0,0.00016471]
[1764465569843,0.04359,91051.0,91050.0,0.00016471]
[1764465570054,0.07004986,91051.0,91050.0,0.00016471]
[1764465570370,0.07004986,91051.0,91050.0,0.01310039]
[1764465570943,0.44004986,91051.0,91050.0,0.01310039]
[1764465571150,0.02111,91030.0,91029.0,0.04463222]
[1764465571343,0.02111,91030.0,91029.0,0.19463222]
[1764465571548,0.04359,91030.0,91029.0,0.19463222]
[1764465571950,0.04359,91030.0,91029.0,0.2075461]
[1764465572150,0.04359,91030.0,91029.0,0.2125461]
[1764465572752,0.04359,91030.0,91029.0,0.2105461]
[1764465573954,0.04359,91030.0,91029.0,0.2115461]
[1764465575757,0.04359,91030.0,91029.0,0.2085461]
[1764465575951,0.04359,91030.0,91029.0,0.2115461]
[1764465577363,0.02111,91030.0,91029.0,0.2815461]
[1764465577863,0.02111,91030.0,91029.0,0.2805461]
[1764465578064,0.02111,91030.0,91029.0,0.2815461]
[1764465582273,0.04359,91030.0,91029.0,0.2815461]
[1764465591971,0.01378,91038.0,91037.0,0.04537]
[1764465591972,0.05965,91038.0,91037.0,0.04537]
[1764465593579,0.05965,91038.0,91037.0,0.04637]
[1764465593780,0.46965,91038.0,91037.0,0.001]
[1764465594078,0.46965,91038.0,91029.0,0.0130361]
[1764465594079,0.04587,91030.0,91029.0,0.0130361]
[1764465594977,0.44587,91030.0,91029.0,0.0130361]
[1764465596171,0.44587,91030.0,91029.0,0.00012222]
[1764465596776,0.04587,91021.0,91020.0,0.00016471]
[1764465597470,0.04587,91021.0,91020.0,0.02287471]
[1764465597671,0.0459807,91021.0,91020.0,0.03542574]
[1764465597879,0.0459807,91021.0,91020.0,0.03642574]
[1764465598278,0.0459807,91021.0,91020.0,0.01371574]
[1764465601679,0.0459807,91021.0,91006.0,0.04564471]
[1764465601680,0.04587,91007.0,91006.0,0.04564471]
[1764465601883,0.04587,91007.0,91006.0,0.47564471]
[1764465602782,0.04587,91007.0,91006.0,0.47664471]
[1764465602983,0.04587,91007.0,91006.0,0.48164471]
[1764465603282,0.04587,91007.0,91006.0,0.49444274]
[1764465604074,0.04587,91014.0,91013.0,0.0109857]
[1764465604279,0.04587,91014.0,91013.0,0.46537]
[1764465604480,0.04587,91014.0,91013.0,0.4763557]
[1764465604983,0.04587,91014.0,91013.0,0.46537]
[1764465605385,0.0001648,91016.0,91015.0,0.04537]
[1764465605689,0.0001648,91016.0,91015.0,0.40537]
[1764465606078,0.05962,91041.0,91040.0,0.04537]
[1764465608483,0.05962,91041.0,91031.0,0.0455348]
[1764465608484,0.05962,91032.0,91031.0,0.0455348]
[1764465609598,0.05962,91032.0,91031.0,0.0001648]
[1764465609599,0.48962,91032.0,91031.0,0.0001648]
[1764465610879,0.08962,91032.0,91031.0,0.0455348]
[1764465615090,0.05962,91032.0,91031.0,0.0455348]
[1764465620192,0.08631387,91032.0,91031.0,0.0455348]
[1764465622501,0.08631387,91032.0,91031.0,0.0228748]
[1764465622699,0.05962,91032.0,91031.0,0.0228748]
[1764465623396,0.05962,91032.0,91031.0,0.0001648]
[1764465624004,0.0587,91020.0,91019.0,0.056265]
[1764465624198,0.0587,91020.0,91019.0,0.47528]
[1764465625001,0.0587,91020.0,91019.0,0.47828]
[1764465625601,0.0587,91020.0,91019.0,0.47728]
[1764465626101,0.0587,91020.0,91019.0,0.47528]
[1764465626289,0.0587,91020.0,91019.0,0.47728]
[1764465626892,0.0587,91020.0,91019.0,0.47628]
[1764465631302,0.04472,91020.0,91019.0,0.47628]
[1764465631498,0.04472,91028.0,91027.0,0.04528]
[1764465633002,0.04572,91028.0,91027.0,0.04528]
[1764465633201,0.0597,91028.0,91027.0,0.04528]
[1764465634107,0.0597,91028.0,91027.0,0.42528]
[1764465634307,0.04472,91028.0,91027.0,0.42528]
[1764465634508,0.04472,91028.0,91027.0,0.42628]
[1764465634908,0.04472,91028.0,91027.0,0.42528]
[1764465635105,0.04472,91028.0,91027.0,0.42628]
[1764465636005,0.04472,91028.0,91027.0,0.04628]
[1764465636006,0.0587,91028.0,91027.0,0.04628]
[1764465637409,0.04472,91028.0,91027.0,0.23628]
[1764465637612,0.0001648,91029.0,91028.0,0.0562639]
[1764465638011,0.0230148,91029.0,91028.0,0.0562639]
[1764465638206,0.0001648,91029.0,91028.0,0.4767339]
[1764465639916,0.0001648,91029.0,91028.0,0.4777339]
[1764465640710,0.0001648,91029.0,91028.0,0.4817339]
[1764465641213,0.0001648,91029.0,91028.0,0.4807339]
[1764465641810,0.0587,91044.0,91043.0,0.04528]
[1764465642114,0.08538473,91044.0,91039.0,0.0109826]
[1764465642306,0.0587,91040.0,91039.0,0.0109826]
[1764465643310,0.0587,91040.0,91039.0,0.3809826]
[1764465645018,0.0587,91040.0,91039.0,0.37]
[1764465654921,0.01398,91040.0,91039.0,0.37]
[1764465655322,0.03614,91040.0,91039.0,0.37]
[1764465655724,0.05926,91040.0,91039.0,0.37]
[1764465656432,0.05926,91044.0,91043.0,0.0109821]
[1764465656632,0.05926,91044.0,91043.0,0.3809821]
[1764465658832,0.06026,91044.0,91043.0,0.3809821]
[1764465663228,0.08678593,91044.0,91043.0,0.3809821]
[1764465663430,0.0867862,91044.0,91043.0,0.3809821]
[1764465664037,0.06026,91044.0,91043.0,0.3809821]
[1764465664235,0.0867892,91044.0,91043.0,0.3809821]
[1764465664636,0.06026,91044.0,91043.0,0.3809821]
[1764465666349,0.08679848,91044.0,91043.0,0.3809821]
[1764465666743,0.02753848,91044.0,91043.0,0.3809821]
[1764465666943,0.001,91044.0,91043.0,0.3809821]
[1764465676670,0.03606,91044.0,91043.0,0.3809821]
[1764465679260,0.05892,91044.0,91043.0,0.3809821]
[1764465680063,0.05892,91044.0,91043.0,0.1309821]
[1764465680252,0.05892,91044.0,91043.0,0.4009821]
[1764465680562,0.05892,91044.0,91043.0,0.0909821]
[1764465681057,0.05892,91044.0,91043.0,0.3609821]
[1764465684157,0.05892,91044.0,91043.0,0.0409821]
[1764465689070,0.05892,91044.0,91043.0,0.03]
[1764465690473,0.04455,91037.0,91036.0,0.0109829]
[1764465691373,0.01371,91038.0,91032.0,0.0109834]
[1764465691572,0.04455,91033.0,91032.0,0.1409834]
[1764465692668,0.04455,91033.0,91032.0,0.13]
[1764465692871,0.04455,91033.0,91032.0,0.132]
[1764465693079,0.04455,91033.0,91032.0,0.133]
[1764465693877,0.04455,91033.0,91032.0,0.433]
[1764465694068,0.04455,91033.0,91032.0,0.123]
[1764465694470,0.04455,91033.0,91032.0,0.122]
[1764465695167,0.04455,91033.0,91032.0,0.12]
[1764465695384,0.04455,91031.0,91030.0,0.0001648]
[1764465695682,0.04455,91026.0,91025.0,0.00444]
[1764465696867,0.01371,91028.0,91017.0,0.0109852]
[1764465696868,0.04455,91018.0,91017.0,0.0109852]
[1764465697066,0.04455,91018.0,91017.0,0.4309852]
[1764465698180,0.04455,91017.0,91016.0,0.0001648]
[1764465698578,0.04455,91017.0,91016.0,0.0301648]
[1764465699278,0.04455,91017.0,91016.0,0.3601648]
[1764465699478,0.04455,91017.0,91016.0,0.3621648]
[1764465700178,0.04455,91017.0,91016.0,0.3631648]
[1764465714679,0.05732,91017.0,91016.0,0.3631648]
[1764465737809,0.05732,91017.0,91016.0,0.0031648]
[1764465741308,0.08391712,91017.0,91016.0,0.0031648]
[1764465742514,0.04441,91010.0,91009.0,0.00443]
[1764465742716,0.04441,91010.0,91009.0,0.42443]
[1764465743018,0.04441,91010.0,91009.0,0.42]
[1764465743813,0.04441,91010.0,91009.0,0.425]
[1764465746517,0.04441,91010.0,91009.0,0.424]
[1764465746818,0.04441,91010.0,91009.0,0.42]
[1764465749016,0.04441,91010.0,91009.0,0.4309862]
[1764465749219,0.04441,91010.0,91009.0,0.42]
[1764465750517,0.04441,91010.0,91009.0,0.4309862]
[1764465750722,0.01277,91017.0,91015.0,0.0109855]
[1764465750918,0.01277,91017.0,91015.0,0.38]
[1764465750919,0.03501,91017.0,91015.0,0.38]
[1764465751720,0.03501,91017.0,91016.0,0.0109854]
[1764465751918,0.03701,91017.0,91016.0,0.4409854]
[1764465752324,0.03501,91017.0,91016.0,0.4409854]
[1764465752723,0.0836375,91017.0,91016.0,0.4409854]